[Event "FIDE Women World Rapid 2024"]
[Site "New York"]
[Date "2024.12.27"]
[Round "8.7"]
[White "Beydullayeva, Govhar"]
[Black "Javakhishvili, Lela"]
[Result "1-0"]
[ECO "A50"]
[WhiteElo "2404"]
[BlackElo "2426"]
[Annotator "ChessBase"]
[PlyCount "213"]
[EventDate "2024.12.14"]
[EventType "swiss"]
[EventCountry "USA"]
[SourceTitle "playchess.com"]
[Source "ChessBase"]
[SourceQuality "1"]
[TimeControl "900+10"]

1. d4 {[%emt 0:00:01]} Nf6 {[%emt 0:00:03]} 2. c4 {[%emt 0:00:01]} b6 {[%emt 0:00:02]} 3. Nc3 {[%emt 0:00:04]} Bb7 {[%emt 0:00:02]} 4. Qc2 {[%emt 0:00:12]} d5 {[%emt 0:00:03]} 5. cxd5 {[%emt 0:00:08]} Nxd5 {[%emt 0:00:02]} 6. e4 {[%emt 0:00:03]} Nxc3 {[%emt 0:00:04]} 7. bxc3 {[%emt 0:00:01]} e6 {[%emt 0:00:08]} 8. Nf3 {[%emt 0:00:49]} Be7 {[%emt 0:00:02]} 9. Bb5+ {[%emt 0:00:01]} c6 {[%emt 0:00:02]} 10. Bd3 {[%emt 0:00:25]} c5 {[%emt 0:00:02]} 11. d5 {[%emt 0:01:22]} exd5 {[%emt 0:00:22]} 12. exd5 {[%emt 0:00:00]} Bxd5 {[%emt 0:01:03]} 13. O-O {[%emt 0:01:58]} Nd7 {[%emt 0:01:42]} 14. Re1 {[%emt 0:01:30]} h6 {[%emt 0:01:47]} 15. Qe2 {[%emt 0:01:39]} Be6 {[%emt 0:00:10]} 16. Bf4 {[%emt 0:00:32]} a6 {[%emt 0:01:21]} 17. Rad1 {[%emt 0:00:55]} O-O {[%emt 0:01:52]} 18. Be4 {[%emt 0:00:15]} Ra7 {[%emt 0:00:04]} 19. Ne5 {[%emt 0:00:01]} Qb8 {[%emt 0:02:44]} 20. Ng6 {[%emt 0:01:39]} Qe8 {[%emt 0:00:11]} 21. Nxe7+ {[%emt 0:01:12]} Qxe7 {[%emt 0:00:02]} 22. Bd6 {[%emt 0:00:01]} Qf6 {[%emt 0:00:01]} 23. Bxf8 {[%emt 0:00:01]} Nxf8 {[%emt 0:00:02]} 24. Qb2 {[%emt 0:02:54]} b5 {[%emt 0:00:03]} 25. a3 {[%emt 0:00:28]} Bg4 {[%emt 0:00:22]} 26. f3 {[%emt 0:00:04]} Be6 {[%emt 0:00:08]} 27. Bd5 {[%emt 0:00:07]} Bf5 {[%emt 0:00:12]} 28. Qc1 {[%emt 0:00:33]} Rd7 {[%emt 0:00:35]} 29. Qe3 {[%emt 0:00:20]} c4 {[%emt 0:00:56]} 30. Be4 {[%emt 0:00:09]} Bxe4 {[%emt 0:00:58]} 31. fxe4 {[%emt 0:00:49]} Qe7 {[%emt 0:00:16]} 32. Rxd7 {[%emt 0:00:13]} Nxd7 {[%emt 0:00:01]} 33. e5 {[%emt 0:00:14]} Nc5 {[%emt 0:00:05]} 34. Re2 {[%emt 0:01:20]} Ne6 {[%emt 0:00:43]} 35. Qc1 {[%emt 0:00:15]} a5 {[%emt 0:00:57]} 36. h3 {[%emt 0:00:21]} h5 {[%emt 0:00:28]} 37. Kh1 {[%emt 0:00:14]} Qc5 {[%emt 0:00:20]} 38. Re4 {[%emt 0:00:13]} Qd5 {[%emt 0:00:08]} 39. Re1 {[%emt 0:00:18]} Nc5 {[%emt 0:00:06]} 40. Qg5 {[%emt 0:00:07]} Nd3 {[%emt 0:00:04]} 41. Re2 {[%emt 0:00:04]} b4 {[%emt 0:01:27]} 42. cxb4 {[%emt 0:00:04]} axb4 {[%emt 0:00:11]} 43. axb4 {[%emt 0:00:01]} c3 {[%emt 0:00:01]} 44. Qf5 {[%emt 0:00:12]} Nf4 {[%emt 0:00:23]} 45. Rc2 {[%emt 0:00:31]} Ne2 {[%emt 0:00:28]} 46. Rxe2 {[%emt 0:00:15]} Qd1+ {[%emt 0:00:04]} 47. Kh2 {[%emt 0:00:01]} Qxe2 {[%emt 0:00:03]} 48. Qc8+ {[%emt 0:00:01]} Kh7 {[%emt 0:00:02]} 49. Qxc3 {[%emt 0:00:01]} Qe4 {[%emt 0:00:40]} 50. b5 {[%emt 0:00:13]} Qb1 {[%emt 0:01:01]} 51. Qc4 {[%emt 0:00:18]} Qf5 {[%emt 0:00:13]} 52. Qd4 {[%emt 0:00:16]} g5 {[%emt 0:00:44]} 53. b6 {[%emt 0:00:07]} Qb1 {[%emt 0:00:08]} 54. Qf2 {[%emt 0:00:23]} Kg8 {[%emt 0:00:12]} 55. Qf6 {[%emt 0:00:09]} g4 {[%emt 0:00:01]} 56. Qg5+ {[%emt 0:00:12]} Kf8 {[%emt 0:00:01]} 57. Qd8+ {[%emt 0:00:01]} Kg7 {[%emt 0:00:01]} 58. Qg5+ {[%emt 0:00:02]} Kf8 {[%emt 0:00:00]} 59. Qxh5 {[%emt 0:00:25]} gxh3 {[%emt 0:00:07]} 60. Qh8+ {[%emt 0:00:02]} Ke7 {[%emt 0:00:02]} 61. Qf6+ {[%emt 0:00:01]} Kf8 {[%emt 0:00:03]} 62. Kxh3 {[%emt 0:00:04]} Qh1+ {[%emt 0:00:05]} 63. Kg3 {[%emt 0:00:01]} Qe1+ {[%emt 0:00:04]} 64. Kh2 {[%emt 0:00:05]} Qb1 {[%emt 0:00:09]} 65. Qh6+ {[%emt 0:00:49]} Kg8 {[%emt 0:00:21]} 66. Qg5+ {[%emt 0:00:04]} Kh7 {[%emt 0:00:09]} 67. Qf6 {[%emt 0:00:16]} Qb3 {[%emt 0:00:02]} 68. Kg1 {[%emt 0:00:06]} Qe3+ {[%emt 0:00:05]} 69. Kf1 {[%emt 0:00:04]} Qd3+ {[%emt 0:00:04]} 70. Kf2 {[%emt 0:00:03]} Qd4+ {[%emt 0:00:08]} 71. Kf3 {[%emt 0:00:10]} Qd5+ {[%emt 0:00:18]} 72. Kg3 {[%emt 0:00:10]} Qb3+ {[%emt 0:00:03]} 73. Kg4 {[%emt 0:00:06]} Qc4+ {[%emt 0:00:06]} 74. Kg5 {[%emt 0:00:14]} Qb3 {[%emt 0:00:14]} 75. Qf5+ {[%emt 0:00:24]} Kg7 {[%emt 0:00:03]} 76. Qf6+ {[%emt 0:00:01]} Kh7 {[%emt 0:00:04]} 77. g4 {[%emt 0:00:12]} Kg8 {[%emt 0:00:42]} 78. Qd8+ {[%emt 0:00:15]} Kg7 {[%emt 0:00:01]} 79. Qd4 {[%emt 0:00:10]} Kg8 {[%emt 0:00:10]} 80. Kf4 {[%emt 0:00:12]} Qb5 {[%emt 0:00:37]} 81. Qd8+ {[%emt 0:00:08]} Kh7 {[%emt 0:00:02]} 82. Qc7 {[%emt 0:00:14]} Kg6 {[%emt 0:00:25]} 83. Ke4 {[%emt 0:00:09]} Qe2+ {[%emt 0:00:08]} 84. Kd5 {[%emt 0:00:02]} Qf3+ {[%emt 0:00:10]} 85. Kd6 {[%emt 0:00:00]} Qxg4 {[%emt 0:00:18]} 86. b7 {[%emt 0:00:02]} Qd4+ {[%emt 0:00:03]} 87. Ke7 {[%emt 0:00:07]} Qh4+ {[%emt 0:00:11]} 88. Ke8 {[%emt 0:00:25]} Qh8+ {[%emt 0:00:03]} 89. Kd7 {[%emt 0:00:01]} Qh3+ {[%emt 0:00:01]} 90. Kc6 {[%emt 0:00:03]} Qf3+ {[%emt 0:00:04]} 91. Kb6 {[%emt 0:00:14]} Qb3+ {[%emt 0:00:07]} 92. Ka6 {[%emt 0:00:03]} Qd3+ {[%emt 0:00:09]} 93. Ka7 {[%emt 0:00:02]} Qa3+ {[%emt 0:00:03]} 94. Kb8 {[%emt 0:00:03]} Qf8+ {[%emt 0:00:37]} 95. Qc8 {[%emt 0:00:01]} Qe7 {[%emt 0:00:40]} 96. Qg4+ {[%emt 0:00:01]} Kh7 {[%emt 0:00:02]} 97. Qh3+ {[%emt 0:00:01]} Kg7 {[%emt 0:00:07]} 98. Ka8 {[%emt 0:00:31]} Qd8+ {[%emt 0:00:23]} 99. b8=Q {[%emt 0:00:02]} Qa5+ {[%emt 0:00:12]} 100. Qa7 {[%emt 0:00:06]} Qd5+ {[%emt 0:00:08]} 101. Qb7 {[%emt 0:00:06]} Qa5+ {[%emt 0:00:02]} 102. Kb8 {[%emt 0:00:02]} Qxe5+ {[%emt 0:00:03]} 103. Qc7 {[%emt 0:00:10]} Qb5+ {[%emt 0:00:01]} 104. Kc8 {[%emt 0:00:07]} Qe8+ {[%emt 0:00:02]} 105. Kb7 {[%emt 0:00:05]} Qb5+ {[%emt 0:00:01]} 106. Qb6 {[%emt 0:00:02]} Qd5+ {[%emt 0:00:01]} 107. Qc6 {[%emt 0:00:04]} 1-0

[Event "FIDE Women World Rapid 2024"]
[Site "New York"]
[Date "2024.12.27"]
[Round "8.8"]
[White "Tan, Zhongyi"]
[Black "Zhu, Chen"]
[Result "1-0"]
[ECO "A21"]
[WhiteElo "2561"]
[BlackElo "2423"]
[Annotator "ChessBase"]
[PlyCount "57"]
[EventDate "2024.12.14"]
[EventType "swiss"]
[EventCountry "USA"]
[SourceTitle "playchess.com"]
[Source "ChessBase"]
[SourceQuality "1"]
[TimeControl "900+10"]

1. c4 {[%emt 0:00:02]} d6 {[%emt 0:00:02]} 2. Nc3 {[%emt 0:00:04]} e5 {[%emt 0:00:03]} 3. g3 {[%emt 0:00:14]} g6 {[%emt 0:00:24]} 4. Bg2 {[%emt 0:00:04]} Bg7 {[%emt 0:00:02]} 5. e3 {[%emt 0:00:17]} Ne7 {[%emt 0:01:01]} 6. Nge2 {[%emt 0:00:07]} O-O {[%emt 0:00:56]} 7. d4 {[%emt 0:00:03]} c6 {[%emt 0:00:21]} 8. O-O {[%emt 0:00:07]} f5 {[%emt 0:01:01]} 9. b4 {[%emt 0:01:49]} exd4 {[%emt 0:01:31]} 10. Nxd4 {[%emt 0:00:47]} c5 {[%emt 0:00:29]} 11. bxc5 {[%emt 0:00:11]} dxc5 {[%emt 0:00:02]} 12. Nde2 {[%emt 0:00:02]} Nbc6 {[%emt 0:00:52]} 13. Rb1 {[%emt 0:00:03]} Na5 {[%emt 0:01:10]} 14. Nd5 {[%emt 0:00:22]} Nec6 {[%emt 0:01:01]} 15. Qc2 {[%emt 0:01:07]} Ne5 {[%emt 0:02:32]} 16. Rd1 {[%emt 0:00:04]} Rb8 {[%emt 0:00:09]} 17. Ba3 {[%emt 0:02:27]} Qd6 {[%emt 0:01:46]} 18. Rb5 {[%emt 0:00:20]} Naxc4 {[%emt 0:02:36]} 19. Bxc5 {[%emt 0:00:07]} Qa6 {[%emt 0:01:06]} 20. Nc7 {[%emt 0:00:09]} Qf6 {[%emt 0:00:32]} 21. Bd5+ {[%emt 0:00:05]} Kh8 {[%emt 0:00:04]} 22. Bxf8 {[%emt 0:01:21]} Bxf8 {[%emt 0:00:08]} 23. Bxc4 {[%emt 0:00:27]} Nf3+ {[%emt 0:00:20]} 24. Kh1 {[%emt 0:00:05]} Qc6 {[%emt 0:00:27]} 25. Qc3+ {[%emt 0:00:58]} Nd4+ {[%emt 0:00:26]} 26. Kg1 {[%emt 0:00:34]} Bg7 {[%emt 0:00:03]} 27. Rxd4 {[%emt 0:01:18]} Qxc7 {[%emt 0:00:06]} 28. Bb3 {[%emt 0:00:38]} Qxc3 {[%emt 0:00:23]} 29. Rd8+ {[%emt 0:00:05]} 1-0

[Event "FIDE Women World Rapid 2024"]
[Site "New York"]
[Date "2024.12.27"]
[Round "8.8"]
[White "Khotenashvili, Bella"]
[Black "Uuriintuya, Uurtsaikh"]
[Result "0-1"]
[ECO "A26"]
[WhiteElo "2420"]
[BlackElo "2187"]
[Annotator "ChessBase"]
[PlyCount "82"]
[EventDate "2024.12.14"]
[EventType "swiss"]
[EventCountry "USA"]
[SourceTitle "playchess.com"]
[Source "ChessBase"]
[SourceQuality "1"]
[TimeControl "900+10"]

1. Nf3 {[%emt 0:00:01]} Nf6 {[%emt 0:00:04]} 2. g3 {[%emt 0:00:01]} g6 {[%emt 0:00:02]} 3. Bg2 {[%emt 0:00:02]} Bg7 {[%emt 0:00:02]} 4. O-O {[%emt 0:00:03]} O-O {[%emt 0:00:02]} 5. c4 {[%emt 0:00:02]} d6 {[%emt 0:00:03]} 6. Nc3 {[%emt 0:00:04]} e5 {[%emt 0:00:10]} 7. d3 {[%emt 0:00:07]} h6 {[%emt 0:00:05]} 8. Rb1 {[%emt 0:00:06]} Nc6 {[%emt 0:00:10]} 9. b4 {[%emt 0:00:09]} Be6 {[%emt 0:00:21]} 10. b5 {[%emt 0:00:16]} Ne7 {[%emt 0:00:05]} 11. a4 {[%emt 0:00:15]} Qd7 {[%emt 0:00:19]} 12. Re1 {[%emt 0:00:09]} Bh3 {[%emt 0:00:27]} 13. Bh1 {[%emt 0:00:02]} Ng4 {[%emt 0:00:52]} 14. Ba3 {[%emt 0:01:40]} f5 {[%emt 0:02:25]} 15. Qb3 {[%emt 0:00:29]} Kh7 {[%emt 0:01:29]} 16. c5 {[%emt 0:00:35]} b6 {[%emt 0:01:28]} 17. cxd6 {[%emt 0:01:00]} cxd6 {[%emt 0:00:03]} 18. Nd5 {[%emt 0:04:09]} Nxd5 {[%emt 0:02:02]} 19. Qxd5 {[%emt 0:00:02]} Rad8 {[%emt 0:00:07]} 20. Rbc1 {[%emt 0:00:44]} e4 {[%emt 0:00:45]} 21. Nd4 {[%emt 0:03:54]} f4 {[%emt 0:03:00]} 22. Ne6 {[%emt 0:01:55]} Rf5 {[%emt 0:01:11]} 23. Qxe4 {[%emt 0:02:25]} fxg3 {[%emt 0:00:36]} 24. fxg3 {[%emt 0:00:19]} Re5 {[%emt 0:00:12]} 25. Nxd8 {[%emt 0:00:15]} Rxe4 {[%emt 0:00:18]} 26. Bxe4 {[%emt 0:00:06]} Qxd8 {[%emt 0:01:38]} 27. e3 {[%emt 0:00:33]} d5 {[%emt 0:00:38]} 28. Bg2 {[%emt 0:00:10]} Bxg2 {[%emt 0:00:08]} 29. Kxg2 {[%emt 0:00:01]} Qg5 {[%emt 0:00:07]} 30. Rc7 {[%emt 0:00:14]} Nxe3+ {[%emt 0:00:15]} 31. Kg1 {[%emt 0:00:05]} Qe5 {[%emt 0:00:16]} 32. Re7 {[%emt 0:00:23]} Qc3 {[%emt 0:00:11]} 33. R1xe3 {[%emt 0:00:06]} Qxa3 {[%emt 0:00:06]} 34. Rxa7 {[%emt 0:00:08]} Qc5 {[%emt 0:00:10]} 35. Kf2 {[%emt 0:00:02]} g5 {[%emt 0:00:22]} 36. Kf3 {[%emt 0:00:17]} g4+ {[%emt 0:00:08]} 37. Ke2 {[%emt 0:00:06]} Qc2+ {[%emt 0:00:06]} 38. Kf1 {[%emt 0:00:13]} Kg6 {[%emt 0:00:05]} 39. Re6+ {[%emt 0:00:08]} Kf5 {[%emt 0:00:02]} 40. Re2 {[%emt 0:00:10]} Qd1+ {[%emt 0:00:08]} 41. Re1 {[%emt 0:00:03]} Qf3+ {[%emt 0:00:03]} 0-1

[Event "FIDE Women World Rapid 2024"]
[Site "New York"]
[Date "2024.12.27"]
[Round "8.9"]
[White "Lee, Alice"]
[Black "Sukandar, Irine Kharisma"]
[Result "0-1"]
[ECO "E04"]
[WhiteElo "2398"]
[BlackElo "2330"]
[Annotator "ChessBase"]
[PlyCount "114"]
[EventDate "2024.12.14"]
[EventType "swiss"]
[EventCountry "USA"]
[SourceTitle "playchess.com"]
[Source "ChessBase"]
[SourceQuality "1"]
[TimeControl "900+10"]

1. d4 {[%emt 0:00:03]} Nf6 {[%emt 0:00:03]} 2. c4 {[%emt 0:00:02]} e6 {[%emt 0:00:02]} 3. Nf3 {[%emt 0:00:02]} d5 {[%emt 0:00:05]} 4. g3 {[%emt 0:00:09]} dxc4 {[%emt 0:00:11]} 5. Bg2 {[%emt 0:00:03]} Bb4+ {[%emt 0:00:05]} 6. Bd2 {[%emt 0:00:12]} c5 {[%emt 0:00:03]} 7. Qc2 {[%emt 0:00:24]} O-O {[%emt 0:00:38]} 8. Qxc4 {[%emt 0:00:37]} Bxd2+ {[%emt 0:01:02]} 9. Nbxd2 {[%emt 0:00:03]} cxd4 {[%emt 0:00:03]} 10. Nxd4 {[%emt 0:00:33]} e5 {[%emt 0:00:14]} 11. N4b3 {[%emt 0:00:11]} a5 {[%emt 0:01:13]} 12. Rd1 {[%emt 0:00:24]} Qe7 {[%emt 0:00:39]} 13. O-O {[%emt 0:01:22]} Nc6 {[%emt 0:00:55]} 14. Qc5 {[%emt 0:00:49]} Qe6 {[%emt 0:01:55]} 15. Nc4 {[%emt 0:01:24]} a4 {[%emt 0:00:36]} 16. Rd6 {[%emt 0:03:05]} Qg4 {[%emt 0:03:07]} 17. Nbd2 {[%emt 0:00:52]} Be6 {[%emt 0:02:25]} 18. Nxe5 {[%emt 0:00:54]} Qxe2 {[%emt 0:00:44]} 19. Nxc6 {[%emt 0:00:06]} bxc6 {[%emt 0:00:03]} 20. Bf3 {[%emt 0:00:14]} Qa6 {[%emt 0:00:23]} 21. Rxc6 {[%emt 0:00:23]} Qa5 {[%emt 0:00:13]} 22. Qc2 {[%emt 0:01:45]} Rad8 {[%emt 0:00:37]} 23. Ne4 {[%emt 0:00:33]} Nxe4 {[%emt 0:01:15]} 24. Bxe4 {[%emt 0:00:49]} Rd2 {[%emt 0:00:43]} 25. Bxh7+ {[%emt 0:00:23]} Kh8 {[%emt 0:00:00]} 26. Qe4 {[%emt 0:00:02]} Qh5 {[%emt 0:00:02]} 27. Qb4 {[%emt 0:01:59]} Rfd8 {[%emt 0:00:15]} 28. Bb1 {[%emt 0:00:03]} Rd1 {[%emt 0:00:11]} 29. Rxe6 {[%emt 0:01:21]} Rxf1+ {[%emt 0:00:32]} 30. Kxf1 {[%emt 0:00:07]} fxe6 {[%emt 0:00:32]} 31. Kg2 {[%emt 0:00:14]} Qd5+ {[%emt 0:00:15]} 32. Kh3 {[%emt 0:00:13]} Qd4 {[%emt 0:00:24]} 33. Qa5 {[%emt 0:00:23]} e5 {[%emt 0:00:29]} 34. Bc2 {[%emt 0:00:29]} Rf8 {[%emt 0:00:23]} 35. f4 {[%emt 0:00:11]} Qxb2 {[%emt 0:00:28]} 36. Qxa4 {[%emt 0:00:13]} Qd4 {[%emt 0:00:08]} 37. fxe5 {[%emt 0:00:23]} Qxa4 {[%emt 0:00:14]} 38. Bxa4 {[%emt 0:00:02]} Rf2 {[%emt 0:00:08]} 39. e6 {[%emt 0:00:24]} Re2 {[%emt 0:00:01]} 40. Bd7 {[%emt 0:00:09]} Kg8 {[%emt 0:00:04]} 41. a4 {[%emt 0:00:03]} Kf8 {[%emt 0:00:00]} 42. g4 {[%emt 0:00:08]} g5 {[%emt 0:00:14]} 43. Kg3 {[%emt 0:00:01]} Ra2 {[%emt 0:00:04]} 44. Kf3 {[%emt 0:00:27]} Rxh2 {[%emt 0:00:14]} 45. Ke4 {[%emt 0:00:07]} Rf2 {[%emt 0:00:04]} 46. Kd5 {[%emt 0:00:09]} Ke7 {[%emt 0:00:06]} 47. Kc5 {[%emt 0:00:10]} Rc2+ {[%emt 0:00:06]} 48. Kb6 {[%emt 0:00:07]} Kd6 {[%emt 0:00:08]} 49. a5 {[%emt 0:00:09]} Rb2+ {[%emt 0:00:13]} 50. Bb5 {[%emt 0:00:04]} Kxe6 {[%emt 0:00:18]} 51. a6 {[%emt 0:00:01]} Kd6 {[%emt 0:00:42]} 52. a7 {[%emt 0:00:05]} Ra2 {[%emt 0:00:01]} 53. Ba6 {[%emt 0:00:21]} Rb2+ {[%emt 0:00:01]} 54. Ka5 {[%emt 0:00:10]} Kc5 {[%emt 0:00:01]} 55. Bc4 {[%emt 0:00:28]} Kxc4 {[%emt 0:00:10]} 56. Ka6 {[%emt 0:00:02]} Ra2+ {[%emt 0:00:03]} 57. Kb7 {[%emt 0:00:01]} Kd4 {[%emt 0:00:02]} 0-1

[Event "FIDE Women World Rapid 2024"]
[Site "New York"]
[Date "2024.12.27"]
[Round "8.9"]
[White "Guichard, Pauline"]
[Black "Ouellet, Maili-Jade"]
[Result "1/2-1/2"]
[ECO "E51"]
[WhiteElo "2357"]
[BlackElo "2386"]
[Annotator "ChessBase"]
[PlyCount "116"]
[EventDate "2024.12.14"]
[EventType "swiss"]
[EventCountry "USA"]
[SourceTitle "playchess.com"]
[Source "ChessBase"]
[SourceQuality "1"]
[TimeControl "900+10"]

1. d4 {[%emt 0:00:01]} Nf6 {[%emt 0:00:01]} 2. c4 {[%emt 0:00:01]} e6 {[%emt 0:00:01]} 3. Nc3 {[%emt 0:00:02]} Bb4 {[%emt 0:00:02]} 4. e3 {[%emt 0:00:01]} O-O {[%emt 0:00:03]} 5. Bd3 {[%emt 0:00:01]} d5 {[%emt 0:00:04]} 6. a3 {[%emt 0:00:02]} dxc4 {[%emt 0:00:07]} 7. Bxc4 {[%emt 0:00:02]} Be7 {[%emt 0:00:03]} 8. Nf3 {[%emt 0:00:06]} c5 {[%emt 0:00:04]} 9. O-O {[%emt 0:00:04]} a6 {[%emt 0:00:03]} 10. dxc5 {[%emt 0:00:02]} Bxc5 {[%emt 0:00:08]} 11. Qe2 {[%emt 0:00:03]} b5 {[%emt 0:00:09]} 12. Ba2 {[%emt 0:00:02]} Bb7 {[%emt 0:00:16]} 13. e4 {[%emt 0:00:11]} Nbd7 {[%emt 0:03:23]} 14. e5 {[%emt 0:00:16]} Bxf3 {[%emt 0:00:34]} 15. gxf3 {[%emt 0:00:05]} Ne8 {[%emt 0:01:23]} 16. Rd1 {[%emt 0:00:56]} Qc7 {[%emt 0:00:59]} 17. Bf4 {[%emt 0:00:58]} g6 {[%emt 0:00:57]} 18. Rac1 {[%emt 0:00:36]} Qb7 {[%emt 0:00:02]} 19. Ne4 {[%emt 0:02:09]} Be7 {[%emt 0:00:01]} 20. Qc2 {[%emt 0:01:32]} Nb6 {[%emt 0:00:57]} 21. Qc6 {[%emt 0:00:48]} Rb8 {[%emt 0:03:05]} 22. Nf6+ {[%emt 0:03:43]} Nxf6 {[%emt 0:01:56]} 23. exf6 {[%emt 0:00:14]} Bxf6 {[%emt 0:00:02]} 24. Bxb8 {[%emt 0:01:17]} Rxb8 {[%emt 0:00:04]} 25. b4 {[%emt 0:00:05]} Kg7 {[%emt 0:03:50]} 26. Rc2 {[%emt 0:01:33]} Qa7 {[%emt 0:00:21]} 27. Kg2 {[%emt 0:00:58]} Be5 {[%emt 0:00:38]} 28. Qe4 {[%emt 0:00:32]} Bf6 {[%emt 0:00:04]} 29. Rdc1 {[%emt 0:00:39]} Rb7 {[%emt 0:00:06]} 30. Rc6 {[%emt 0:00:31]} Rd7 {[%emt 0:00:17]} 31. R1c2 {[%emt 0:00:45]} Na4 {[%emt 0:00:23]} 32. Qf4 {[%emt 0:00:30]} Qa8 {[%emt 0:00:14]} 33. Rc8 {[%emt 0:00:17]} Qa7 {[%emt 0:00:07]} 34. R8c7 {[%emt 0:00:42]} Rxc7 {[%emt 0:00:00]} 35. Qxc7 {[%emt 0:00:10]} Qxc7 {[%emt 0:00:21]} 36. Rxc7 {[%emt 0:00:02]} Kf8 {[%emt 0:00:04]} 37. Ra7 {[%emt 0:00:40]} Bb2 {[%emt 0:00:02]} 38. Rxa6 {[%emt 0:00:01]} Bxa3 {[%emt 0:00:01]} 39. Ra5 {[%emt 0:00:30]} Bxb4 {[%emt 0:00:03]} 40. Rxb5 {[%emt 0:00:02]} Bd6 {[%emt 0:00:10]} 41. Bb3 {[%emt 0:00:14]} Nc5 {[%emt 0:00:03]} 42. Bc4 {[%emt 0:00:07]} Nd7 {[%emt 0:00:15]} 43. Rb7 {[%emt 0:00:09]} Ne5 {[%emt 0:00:09]} 44. Bb5 {[%emt 0:00:05]} g5 {[%emt 0:00:05]} 45. Ra7 {[%emt 0:00:20]} Ng6 {[%emt 0:00:10]} 46. Ba4 {[%emt 0:00:21]} Nh4+ {[%emt 0:00:16]} 47. Kh1 {[%emt 0:00:15]} Nxf3 {[%emt 0:00:03]} 48. Bd1 {[%emt 0:00:01]} Ne5 {[%emt 0:00:14]} 49. Kg2 {[%emt 0:00:14]} Ng6 {[%emt 0:00:17]} 50. Kf3 {[%emt 0:00:12]} Bxh2 {[%emt 0:00:14]} 51. Kg4 {[%emt 0:00:16]} Bf4 {[%emt 0:00:02]} 52. Bb3 {[%emt 0:00:12]} Ne5+ {[%emt 0:00:37]} 53. Kh5 {[%emt 0:00:03]} g4 {[%emt 0:00:02]} 54. Bd1 {[%emt 0:00:10]} Kg7 {[%emt 0:00:15]} 55. Bxg4 {[%emt 0:00:05]} Nxg4 {[%emt 0:00:08]} 56. Kxg4 {[%emt 0:00:02]} Be5 {[%emt 0:00:02]} 57. f4 {[%emt 0:00:07]} Bc3 {[%emt 0:00:20]} 58. f5 {[%emt 0:00:18]} exf5+ {[%emt 0:00:16]} 1/2-1/2

[Event "FIDE Women World Rapid 2024"]
[Site "New York"]
[Date "2024.12.27"]
[Round "8.10"]
[White "Munkhzul, Turmunkh"]
[Black "Muzychuk, Anna"]
[Result "1-0"]
[ECO "C68"]
[WhiteElo "2301"]
[BlackElo "2515"]
[Annotator "ChessBase"]
[PlyCount "93"]
[EventDate "2024.12.14"]
[EventType "swiss"]
[EventCountry "USA"]
[SourceTitle "playchess.com"]
[Source "ChessBase"]
[SourceQuality "1"]
[TimeControl "900+10"]

1. e4 {[%emt 0:00:01]} e5 {[%emt 0:00:00]} 2. Nf3 {[%emt 0:00:03]} Nc6 {[%emt 0:00:01]} 3. Bb5 {[%emt 0:00:01]} a6 {[%emt 0:00:01]} 4. Bxc6 {[%emt 0:00:02]} dxc6 {[%emt 0:00:02]} 5. Nc3 {[%emt 0:00:01]} f6 {[%emt 0:00:26]} 6. d4 {[%emt 0:00:02]} exd4 {[%emt 0:00:07]} 7. Qxd4 {[%emt 0:00:01]} Qxd4 {[%emt 0:00:11]} 8. Nxd4 {[%emt 0:00:02]} c5 {[%emt 0:01:29]} 9. Nde2 {[%emt 0:00:01]} Be6 {[%emt 0:00:16]} 10. Be3 {[%emt 0:00:09]} O-O-O {[%emt 0:00:11]} 11. f3 {[%emt 0:00:01]} b6 {[%emt 0:00:32]} 12. Kf2 {[%emt 0:00:02]} Bd6 {[%emt 0:00:59]} 13. Rad1 {[%emt 0:00:04]} Ne7 {[%emt 0:00:08]} 14. Bf4 {[%emt 0:00:07]} Bxf4 {[%emt 0:00:25]} 15. Nxf4 {[%emt 0:00:01]} Bf7 {[%emt 0:00:01]} 16. a3 {[%emt 0:01:45]} Nc6 {[%emt 0:00:21]} 17. Rxd8+ {[%emt 0:00:03]} Rxd8 {[%emt 0:00:03]} 18. Rd1 {[%emt 0:00:01]} Ne5 {[%emt 0:01:39]} 19. Rxd8+ {[%emt 0:00:15]} Kxd8 {[%emt 0:00:01]} 20. Nd1 {[%emt 0:00:04]} Nc4 {[%emt 0:01:27]} 21. Nd3 {[%emt 0:00:03]} a5 {[%emt 0:00:46]} 22. Ne3 {[%emt 0:00:01]} Nd6 {[%emt 0:00:01]} 23. h4 {[%emt 0:00:15]} Kd7 {[%emt 0:00:19]} 24. g4 {[%emt 0:00:06]} Nb5 {[%emt 0:01:16]} 25. c3 {[%emt 0:00:29]} Nd6 {[%emt 0:00:43]} 26. g5 {[%emt 0:00:25]} Ke7 {[%emt 0:01:52]} 27. gxf6+ {[%emt 0:00:19]} gxf6 {[%emt 0:00:01]} 28. Kg3 {[%emt 0:00:02]} c6 {[%emt 0:00:48]} 29. Kf4 {[%emt 0:00:04]} Bc4 {[%emt 0:00:11]} 30. Nf2 {[%emt 0:00:39]} Be6 {[%emt 0:00:34]} 31. e5 {[%emt 0:02:43]} fxe5+ {[%emt 0:00:17]} 32. Kxe5 {[%emt 0:00:01]} Nf7+ {[%emt 0:00:02]} 33. Kf4 {[%emt 0:00:01]} Bd5 {[%emt 0:02:29]} 34. Nfg4 {[%emt 0:00:29]} a4 {[%emt 0:00:32]} 35. h5 {[%emt 0:01:34]} b5 {[%emt 0:00:15]} 36. Nf2 {[%emt 0:00:23]} Ke6 {[%emt 0:00:15]} 37. Nd3 {[%emt 0:00:07]} c4 {[%emt 0:00:12]} 38. Nc5+ {[%emt 0:01:20]} Kd6 {[%emt 0:00:00]} 39. Ne4+ {[%emt 0:00:07]} Bxe4 {[%emt 0:00:22]} 40. fxe4 {[%emt 0:00:03]} Ne5 {[%emt 0:00:27]} 41. Kf5 {[%emt 0:00:23]} Nd3 {[%emt 0:00:01]} 42. Kf6 {[%emt 0:00:11]} Kd7 {[%emt 0:00:52]} 43. e5 {[%emt 0:00:07]} Ke8 {[%emt 0:00:32]} 44. e6 {[%emt 0:00:07]} Nf4 {[%emt 0:00:05]} 45. h6 {[%emt 0:00:09]} Kf8 {[%emt 0:00:50]} 46. e7+ {[%emt 0:00:28]} Ke8 47. Nf5 {[%emt 0:00:11]} 1-0